[Event "Opocensky Memorial 2019"]
[Site "Prague"]
[Date "2019.06.26"]
[Round "6.4"]
[White "Plischki, Sebastian"]
[Black "Kourousis, Epaminondas"]
[Result "0-1"]
[ECO "E49"]
[WhiteElo "2420"]
[BlackElo "2394"]
[Annotator "NA"]
[PlyCount "98"]
[EventDate "2019.06.22"]
[EventType "tourn"]
[EventCountry "CZE"]
[SourceTitle "playchess.com"]
[Source "ChessBase"]
[SourceQuality "1"]
[TimeControl "5400+30"]

1. d4 {[%emt 1:30:30]} Nf6 {[%emt 1:30:30]} 2. c4 {[%emt 0:00:30]} e6 {[%emt 0:00:30]} 3. Nc3 {[%emt 0:00:30]} Bb4 {[%emt 0:00:30]} 4. f3 {[%emt 0:00:30]} d5 {[%emt 0:00:30]} 5. a3 {[%emt 0:00:30]} Bxc3+ {[%emt 0:00:30]} 6. bxc3 {[%emt 0:00:30]} O-O {[%emt 0:00:30]} 7. cxd5 {[%emt 0:00:30]} exd5 {[%emt 0:00:30]} 8. e3 {[%emt 0:00:30]} c5 {[%emt 0:00:30]} 9. Bd3 {[%emt 0:00:30]} Nc6 {[%emt 0:00:30]} 10. Ne2 {[%emt 0:00:30]} Be6 {[%emt 0:00:30]} 11. O-O {[%emt 0:00:30]} Rc8 {[%emt 0:00:30]} 12. Rb1 {[%emt 0:00:30]} Qd7 {[%emt 0:00:30]} 13. Kh1 {[%emt 0:00:30]} Bf5 {[%emt 0:00:30]} 14. Bxf5 {[%emt 0:00:30]} Qxf5 {[%emt 0:00:30]} 15. Rxb7 {[%emt 0:00:30]} Rb8 {[%emt 0:00:30]} 16. Ng3 {[%emt 0:00:30]} Qe6 {[%emt 0:00:30]} 17. Rxb8 {[%emt 0:00:30]} Rxb8 {[%emt 0:00:30]} 18. e4 {[%emt 0:00:30]} Na5 {[%emt 0:00:30]} 19. e5 {[%emt 0:00:30]} Nd7 {[%emt 0:00:30]} 20. Ne2 {[%emt 0:00:30]} Qc6 {[%emt 0:00:30]} 21. f4 {[%emt 0:00:30]} f5 {[%emt 0:00:30]} 22. g4 {[%emt 0:00:30]} fxg4 {[%emt 0:00:30]} 23. Ng3 {[%emt 0:00:30]} cxd4 {[%emt 0:00:30]} 24. Nf5 {[%emt 0:00:30]} Qc4 {[%emt 0:00:30]} 25. cxd4 {[%emt 0:00:30]} Rb1 {[%emt 0:00:30]} 26. Rg1 {[%emt 0:00:30]} h5 {[%emt 0:00:30]} 27. Ne3 {[%emt 0:00:30]} Qb3 {[%emt 0:00:30]} 28. Qxb3 {[%emt 0:00:30]} Nxb3 {[%emt 0:00:30]} 29. Nxd5 {[%emt 0:00:30]} Rxc1 {[%emt 0:00:30]} 30. Rxc1 {[%emt 0:00:30]} Nxc1 {[%emt 0:00:30]} 31. Nc7 {[%emt 0:00:30]} Ne2 {[%emt 0:00:30]} 32. d5 {[%emt 0:00:30]} Nxf4 {[%emt 0:00:30]} 33. e6 {[%emt 0:00:30]} Nf6 {[%emt 0:00:30]} 34. d6 {[%emt 0:00:30]} Nxe6 {[%emt 0:00:30]} 35. Nxe6 {[%emt 0:00:30]} Kf7 {[%emt 0:00:30]} 36. Nc5 {[%emt 0:00:30]} Ke8 {[%emt 0:00:30]} 37. Kg2 {[%emt 0:00:30]} Nd7 {[%emt 0:00:30]} 38. Ne6 {[%emt 0:00:30]} Kf7 {[%emt 0:00:30]} 39. Nd8+ {[%emt 0:00:30]} Kf6 {[%emt 0:00:30]} 40. Kg3 {[%emt 0:00:30]} g5 {[%emt 0:00:30]} 41. a4 {[%emt 0:00:30]} Ne5 {[%emt 0:00:30]} 42. a5 {[%emt 0:00:30]} h4+ {[%emt 0:00:30]} 43. Kf2 {[%emt 0:00:30]} Kf5 {[%emt 0:00:30]} 44. a6 {[%emt 0:00:30]} g3+ {[%emt 0:00:30]} 45. hxg3 {[%emt 0:00:30]} h3 {[%emt 0:00:30]} 46. Kg1 {[%emt 0:00:30]} g4 {[%emt 0:00:30]} 47. Kh2 {[%emt 0:00:30]} Ke4 {[%emt 0:00:30]} 48. d7 {[%emt 0:00:30]} Kd5 {[%emt 0:00:30]} 49. Ne6 {[%emt 0:00:30]} Nxd7 {[%emt 0:00:30]} 0-1

[Event "Opocensky Memorial 2019"]
[Site "Prague"]
[Date "2019.06.26"]
[Round "6.5"]
[White "Burdalev, Kirill"]
[Black "Ivanov, Mikhail M"]
[Result "1-0"]
[ECO "B08"]
[WhiteElo "2385"]
[BlackElo "2366"]
[Annotator "NA"]
[PlyCount "55"]
[EventDate "2019.06.22"]
[EventType "tourn"]
[EventCountry "CZE"]
[SourceTitle "playchess.com"]
[Source "ChessBase"]
[SourceQuality "1"]
[TimeControl "5400+30"]

1. e4 {[%emt 0:01:10]} g6 {[%emt 0:02:50]} 2. d4 {[%emt 0:00:27]} Bg7 {[%emt 0:00:05]} 3. Nf3 {[%emt 0:00:48]} d6 {[%emt 0:01:05]} 4. Be3 {[%emt 0:02:01]} Nf6 {[%emt 0:01:35]} 5. Nc3 {[%emt 0:00:12]} a6 {[%emt 0:06:08]} 6. a4 {[%emt 0:11:27]} O-O {[%emt 0:03:40]} 7. Qd2 {[%emt 0:00:57]} Re8 {[%emt 0:03:55]} 8. Bc4 {[%emt 0:03:35]} c6 {[%emt 0:02:10]} 9. Bb3 {[%emt 0:01:50]} Ng4 {[%emt 0:05:52]} 10. Bg5 {[%emt 0:01:26]} h6 {[%emt 0:07:58]} 11. h3 {[%emt 0:01:09]} hxg5 {[%emt 0:07:00]} 12. hxg4 {[%emt 0:00:10]} e6 {[%emt 0:00:49]} 13. Nxg5 {[%emt 0:00:33]} Nd7 {[%emt 0:01:35]} 14. f4 {[%emt 0:13:05]} d5 {[%emt 0:06:13]} 15. O-O-O {[%emt 0:08:47]} Nf8 {[%emt 0:00:13]} 16. e5 {[%emt 0:08:14]} b5 {[%emt 0:00:20]} 17. Qe3 {[%emt 0:00:16]} Ra7 {[%emt 0:02:34]} 18. Rh4 {[%emt 0:01:57]} f6 {[%emt 0:00:24]} 19. Nf3 {[%emt 0:00:56]} Bh8 {[%emt 0:11:21]} 20. exf6 {[%emt 0:08:13]} Bxf6 {[%emt 0:06:58]} 21. g5 {[%emt 0:00:05]} Bg7 {[%emt 0:00:16]} 22. Ne5 {[%emt 0:02:14]} Bxe5 {[%emt 0:07:00]} 23. dxe5 {[%emt 0:00:38]} Rh7 {[%emt 0:00:19]} 24. Rxh7 {[%emt 0:00:05]} Nxh7 {[%emt 0:00:05]} 25. Ne4 {[%emt 0:00:12]} Qc7 {[%emt 0:04:52]} 26. Nd6 {[%emt 0:00:53]} Re7 {[%emt 0:00:23]} 27. Qc5 {[%emt 0:00:36]} Nf8 {[%emt 0:00:26]} 28. Nxc8 {[%emt 0:00:07]} 1-0

[Event "Opocensky Memorial 2019"]
[Site "Prague"]
[Date "2019.06.27"]
[Round "7.1"]
[White "Ivanov, Mikhail M"]
[Black "Sokolov, Alexander"]
[Result "1-0"]
[ECO "A49"]
[WhiteElo "2366"]
[BlackElo "2382"]
[Annotator "NA"]
[PlyCount "81"]
[EventDate "2019.06.22"]
[EventType "tourn"]
[EventCountry "CZE"]
[SourceTitle "playchess.com"]
[Source "ChessBase"]
[SourceQuality "1"]
[TimeControl "5400+30"]

1. Nf3 {[%emt 0:06:31]} Nf6 {[%emt 0:00:00]} 2. g3 {[%emt 0:00:07]} g6 {[%emt 0:00:00]} 3. b3 {[%emt 0:00:04]} Bg7 {[%emt 0:00:00]} 4. Bb2 {[%emt 0:00:03]} O-O {[%emt 0:00:00]} 5. Bg2 {[%emt 0:00:02]} d6 {[%emt 0:00:05]} 6. d4 {[%emt 0:00:15]} Nbd7 {[%emt 0:00:05]} 7. O-O {[%emt 0:00:37]} Re8 {[%emt 0:00:04]} 8. Nbd2 {[%emt 0:02:36]} c5 {[%emt 0:04:59]} 9. c4 {[%emt 0:03:26]} cxd4 {[%emt 0:00:43]} 10. Nxd4 {[%emt 0:00:24]} Qb6 {[%emt 0:01:11]} 11. Qc2 {[%emt 0:01:30]} Nc5 {[%emt 0:03:29]} 12. a4 {[%emt 0:12:10]} a5 {[%emt 0:09:18]} 13. h3 {[%emt 0:04:10]} Bd7 {[%emt 0:01:01]} 14. e4 {[%emt 0:01:39]} Nh5 {[%emt 0:05:00]} 15. N2f3 {[%emt 0:07:53]} e5 {[%emt 0:22:53]} 16. Nb5 {[%emt 0:00:52]} f5 {[%emt 0:02:59]} 17. Nd2 {[%emt 0:05:05]} fxe4 {[%emt 0:00:52]} 18. Kh2 {[%emt 0:00:46]} Nf6 {[%emt 0:04:32]} 19. Ba3 {[%emt 0:15:24]} Rac8 {[%emt 0:04:08]} 20. Rad1 {[%emt 0:04:16]} d5 {[%emt 0:02:06]} 21. Qb1 {[%emt 0:02:45]} Bf5 {[%emt 0:20:37]} 22. g4 {[%emt 0:05:40]} e3 {[%emt 0:00:10]} 23. gxf5 {[%emt 0:00:05]} e2 {[%emt 0:00:02]} 24. cxd5 {[%emt 0:00:36]} exf1=N+ {[%emt 0:01:54]} 25. Rxf1 {[%emt 0:00:55]} Qd8 {[%emt 0:00:48]} 26. Nc4 {[%emt 0:01:11]} Nxd5 {[%emt 0:02:30]} 27. Nbd6 {[%emt 0:05:59]} e4 {[%emt 0:01:17]} 28. Nxe8 {[%emt 0:01:19]} Qxe8 {[%emt 0:00:18]} 29. Kh1 {[%emt 0:04:56]} Nc3 {[%emt 0:06:22]} 30. Qc2 {[%emt 0:00:48]} Qd8 {[%emt 0:00:04]} 31. fxg6 {[%emt 0:02:22]} hxg6 {[%emt 0:01:13]} 32. Bxc5 {[%emt 0:04:52]} Rxc5 {[%emt 0:00:04]} 33. Bxe4 {[%emt 0:00:05]} Qh4 {[%emt 0:00:04]} 34. Bg2 {[%emt 0:00:35]} Rf5 {[%emt 0:00:54]} 35. Qd3 {[%emt 0:03:11]} Kh7 {[%emt 0:02:58]} 36. Qg3 {[%emt 0:01:33]} Qd4 {[%emt 0:00:03]} 37. Ne3 {[%emt 0:01:36]} Ne2 {[%emt 0:01:12]} 38. Qc7 {[%emt 0:01:18]} Re5 {[%emt 0:03:37]} 39. Rd1 {[%emt 0:00:56]} Qb2 {[%emt 0:00:41]} 40. Qc2 {[%emt 0:00:52]} Qxc2 {[%emt 0:00:31]} 41. Nxc2 {[%emt 0:01:06]} 1-0

[Event "Opocensky Memorial 2019"]
[Site "Prague"]
[Date "2019.06.27"]
[Round "7.2"]
[White "Kourousis, Epaminondas"]
[Black "Burdalev, Kirill"]
[Result "1-0"]
[ECO "A07"]
[WhiteElo "2394"]
[BlackElo "2385"]
[Annotator "NA"]
[PlyCount "77"]
[EventDate "2019.06.22"]
[EventType "tourn"]
[EventCountry "CZE"]
[SourceTitle "playchess.com"]
[Source "ChessBase"]
[SourceQuality "1"]
[TimeControl "5400+30"]

1. Nf3 {[%emt 0:00:00]} d5 {[%emt 0:02:44]} 2. g3 {[%emt 0:00:46]} Bg4 {[%emt 0:00:03]} 3. Bg2 {[%emt 0:00:27]} Nd7 {[%emt 0:00:03]} 4. O-O {[%emt 0:01:44]} c6 {[%emt 0:01:53]} 5. d3 {[%emt 0:01:59]} Ngf6 {[%emt 0:00:09]} 6. b3 {[%emt 0:00:18]} e5 {[%emt 0:02:26]} 7. h3 {[%emt 0:02:16]} Bh5 {[%emt 0:00:04]} 8. Bb2 {[%emt 0:01:50]} Bd6 {[%emt 0:00:18]} 9. Nh4 {[%emt 0:02:31]} O-O {[%emt 0:00:36]} 10. Nf5 {[%emt 0:00:16]} Bc7 {[%emt 0:03:54]} 11. Nd2 {[%emt 0:02:41]} Re8 {[%emt 0:00:09]} 12. Qe1 {[%emt 0:03:04]} a5 {[%emt 0:03:44]} 13. a3 {[%emt 0:01:59]} Nc5 {[%emt 0:00:52]} 14. e4 {[%emt 0:01:24]} Ne6 {[%emt 0:09:08]} 15. Kh1 {[%emt 0:05:50]} Bg6 {[%emt 0:04:13]} 16. Nh4 {[%emt 0:01:09]} Bh5 {[%emt 0:00:30]} 17. f4 {[%emt 0:07:20]} exf4 {[%emt 0:09:19]} 18. e5 {[%emt 0:00:31]} f3 {[%emt 0:02:24]} 19. Ndxf3 {[%emt 0:03:22]} Nd7 {[%emt 0:00:30]} 20. Qf2 {[%emt 0:10:21]} Bb6 {[%emt 0:02:39]} 21. Qd2 {[%emt 0:01:21]} Bc7 {[%emt 0:12:42]} 22. g4 {[%emt 0:08:04]} Bg6 {[%emt 0:00:03]} 23. Rae1 {[%emt 0:01:08]} Ndf8 {[%emt 0:07:15]} 24. Nf5 {[%emt 0:07:19]} Qd7 {[%emt 0:05:45]} 25. h4 {[%emt 0:03:14]} h5 {[%emt 0:02:45]} 26. Bh3 {[%emt 0:00:11]} Qd8 {[%emt 0:00:06]} 27. Rg1 {[%emt 0:04:10]} d4 {[%emt 0:02:20]} 28. gxh5 {[%emt 0:06:12]} Bxh5 {[%emt 0:02:46]} 29. Bg4 {[%emt 0:00:07]} Bxg4 {[%emt 0:01:17]} 30. Rxg4 {[%emt 0:00:02]} Qd5 {[%emt 0:01:49]} 31. Qg2 {[%emt 0:00:42]} g6 {[%emt 0:02:28]} 32. h5 {[%emt 0:00:37]} Kh8 {[%emt 0:04:59]} 33. N5xd4 {[%emt 0:04:57]} Nh7 {[%emt 0:01:03]} 34. hxg6 {[%emt 0:00:49]} fxg6 {[%emt 0:00:04]} 35. Nxe6 {[%emt 0:01:14]} Rxe6 {[%emt 0:00:29]} 36. Rd4 {[%emt 0:00:11]} Qc5 {[%emt 0:01:18]} 37. Rd7 {[%emt 0:00:07]} Bb6 {[%emt 0:02:39]} 38. Rxh7+ {[%emt 0:00:26]} Kxh7 {[%emt 0:00:09]} 39. Ng5+ {[%emt 0:00:24]} 1-0

[Event "Opocensky Memorial 2019"]
[Site "Prague"]
[Date "2019.06.27"]
[Round "7.3"]
[White "Kozusek, Daniel"]
[Black "Plischki, Sebastian"]
[Result "1/2-1/2"]
[ECO "B07"]
[WhiteElo "2339"]
[BlackElo "2420"]
[Annotator "NA"]
[PlyCount "51"]
[EventDate "2019.06.22"]
[EventType "tourn"]
[EventCountry "CZE"]
[SourceTitle "playchess.com"]
[Source "ChessBase"]
[SourceQuality "1"]
[TimeControl "5400+30"]

1. d4 {[%emt 0:04:45]} Nf6 {[%emt 0:00:00]} 2. g3 {[%emt 0:00:25]} c5 {[%emt 0:00:55]} 3. d5 {[%emt 0:00:06]} d6 {[%emt 0:01:55]} 4. Nc3 {[%emt 0:01:35]} g6 {[%emt 0:00:27]} 5. Bg2 {[%emt 0:00:51]} Bg7 {[%emt 0:00:08]} 6. e4 {[%emt 0:00:07]} O-O {[%emt 0:00:27]} 7. Nge2 {[%emt 0:00:27]} Nbd7 {[%emt 0:01:22]} 8. h3 {[%emt 0:00:55]} Rb8 {[%emt 0:01:20]} 9. a4 {[%emt 0:00:20]} b6 {[%emt 0:00:26]} 10. O-O {[%emt 0:02:53]} a6 {[%emt 0:01:23]} 11. Rb1 {[%emt 0:00:07]} b5 {[%emt 0:06:59]} 12. axb5 {[%emt 0:00:33]} axb5 {[%emt 0:00:06]} 13. b4 {[%emt 0:00:08]} cxb4 {[%emt 0:02:36]} 14. Na2 {[%emt 0:01:51]} b3 {[%emt 0:10:14]} 15. cxb3 {[%emt 0:00:50]} Nc5 {[%emt 0:02:58]} 16. Nb4 {[%emt 0:00:38]} Bd7 {[%emt 0:01:04]} 17. f3 {[%emt 0:06:01]} Qc8 {[%emt 0:07:09]} 18. Kh2 {[%emt 0:06:06]} Na6 {[%emt 0:03:03]} 19. Qd2 {[%emt 0:05:51]} Nxb4 {[%emt 0:02:28]} 20. Qxb4 {[%emt 0:00:04]} Qc2 {[%emt 0:04:28]} 21. Bd2 {[%emt 0:00:20]} Rfc8 {[%emt 0:01:35]} 22. Rfd1 {[%emt 0:19:03]} Ne8 {[%emt 0:07:07]} 23. Rbc1 {[%emt 0:15:20]} Qd3 {[%emt 0:04:22]} 24. Nf4 {[%emt 0:05:30]} Qd4 {[%emt 0:01:18]} 25. Qxd4 {[%emt 0:02:06]} Bxd4 {[%emt 0:00:09]} 26. Nd3 {[%emt 0:01:46]} 1/2-1/2

[Event "Opocensky Memorial 2019"]
[Site "Prague"]
[Date "2019.06.27"]
[Round "7.4"]
[White "Neuman, Petr"]
[Black "Pulpan, Jakub"]
[Result "0-1"]
[ECO "E18"]
[WhiteElo "2395"]
[BlackElo "2414"]
[Annotator "NA"]
[PlyCount "142"]
[EventDate "2019.06.22"]
[EventType "tourn"]
[EventCountry "CZE"]
[SourceTitle "playchess.com"]
[Source "ChessBase"]
[SourceQuality "1"]
[TimeControl "5400+30"]

1. c4 {[%emt 1:30:30]} e6 {[%emt 1:30:30]} 2. g3 {[%emt 0:00:30]} d5 {[%emt 0:00:30]} 3. Bg2 {[%emt 0:00:30]} Nf6 {[%emt 0:00:30]} 4. Nf3 {[%emt 0:00:30]} Be7 {[%emt 0:00:30]} 5. O-O {[%emt 0:00:30]} O-O {[%emt 0:00:30]} 6. d4 {[%emt 0:00:30]} dxc4 {[%emt 0:00:30]} 7. Qc2 {[%emt 0:00:30]} b6 {[%emt 0:00:30]} 8. Qxc4 {[%emt 0:00:30]} Bb7 {[%emt 0:00:30]} 9. Nc3 {[%emt 0:00:30]} Nbd7 {[%emt 0:00:30]} 10. Rd1 {[%emt 0:00:30]} a6 {[%emt 0:00:30]} 11. Bf4 {[%emt 0:00:30]} Bd6 {[%emt 0:00:30]} 12. Bg5 {[%emt 0:00:30]} h6 {[%emt 0:00:30]} 13. Bxf6 {[%emt 0:00:30]} Nxf6 {[%emt 0:00:30]} 14. Ne5 {[%emt 0:00:30]} b5 {[%emt 0:00:30]} 15. Qd3 {[%emt 0:00:30]} Bxg2 {[%emt 0:00:30]} 16. Kxg2 {[%emt 0:00:30]} c5 {[%emt 0:00:30]} 17. Ne4 {[%emt 0:00:30]} c4 {[%emt 0:00:30]} 18. Qf3 {[%emt 0:00:30]} Nxe4 {[%emt 0:00:30]} 19. Qxe4 {[%emt 0:00:30]} Qc7 {[%emt 0:00:30]} 20. Nf3 {[%emt 0:00:30]} Rac8 {[%emt 0:00:30]} 21. Rac1 {[%emt 0:00:30]} Qa5 {[%emt 0:00:30]} 22. a3 {[%emt 0:00:30]} c3 {[%emt 0:00:30]} 23. Rxc3 {[%emt 0:00:30]} Rxc3 {[%emt 0:00:30]} 24. bxc3 {[%emt 0:00:30]} Qxc3 {[%emt 0:00:30]} 25. Rd3 {[%emt 0:00:30]} Qc2 {[%emt 0:00:30]} 26. Qb7 {[%emt 0:00:30]} Qxe2 {[%emt 0:00:30]} 27. Rc3 {[%emt 0:00:30]} Qb2 {[%emt 0:00:30]} 28. Rc6 {[%emt 0:00:30]} Bxa3 {[%emt 0:00:30]} 29. Rxa6 {[%emt 0:00:30]} b4 {[%emt 0:00:30]} 30. Rb6 {[%emt 0:00:30]} Qb3 {[%emt 0:00:30]} 31. Ne5 {[%emt 0:00:30]} Qc3 {[%emt 0:00:30]} 32. Nc6 {[%emt 0:00:30]} Qc4 {[%emt 0:00:30]} 33. Nxb4 {[%emt 0:00:30]} Qxd4 {[%emt 0:00:30]} 34. Nc2 {[%emt 0:00:30]} Qd3 {[%emt 0:00:30]} 35. Nxa3 {[%emt 0:00:30]} Qxa3 {[%emt 0:00:30]} 36. h4 {[%emt 0:00:30]} h5 {[%emt 0:00:30]} 37. Rb5 {[%emt 0:00:30]} g6 {[%emt 0:00:30]} 38. Qf3 {[%emt 0:00:30]} Qc1 {[%emt 0:00:30]} 39. Rb7 {[%emt 0:00:30]} Kg7 {[%emt 0:00:30]} 40. Kh2 {[%emt 0:00:30]} Qa1 {[%emt 0:00:30]} 41. Qe2 {[%emt 0:00:30]} Qd4 {[%emt 0:00:30]} 42. Qb2 {[%emt 0:00:30]} Rd8 {[%emt 0:00:30]} 43. Qxd4+ {[%emt 0:00:30]} Rxd4 {[%emt 0:00:30]} 44. Kg2 {[%emt 0:00:30]} Rd3 {[%emt 0:00:30]} 45. Ra7 {[%emt 0:00:30]} Kf6 {[%emt 0:00:30]} 46. Rb7 {[%emt 0:00:30]} e5 {[%emt 0:00:30]} 47. Rb6+ {[%emt 0:00:30]} Kf5 {[%emt 0:00:30]} 48. Rb7 {[%emt 0:00:30]} f6 {[%emt 0:00:30]} 49. Rb6 {[%emt 0:00:30]} Ra3 {[%emt 0:00:30]} 50. Rc6 {[%emt 0:00:30]} Ra4 {[%emt 0:00:30]} 51. Rb6 {[%emt 0:00:30]} g5 {[%emt 0:00:30]} 52. hxg5 {[%emt 0:00:30]} Kxg5 {[%emt 0:00:30]} 53. Rb8 {[%emt 0:00:30]} h4 {[%emt 0:00:30]} 54. gxh4+ {[%emt 0:00:30]} Rxh4 {[%emt 0:00:30]} 55. Rb6 {[%emt 0:00:30]} Rg4+ {[%emt 0:00:30]} 56. Kf1 {[%emt 0:00:30]} Ra4 {[%emt 0:00:30]} 57. Kg2 {[%emt 0:00:30]} f5 {[%emt 0:00:30]} 58. Rb5 {[%emt 0:00:30]} e4 {[%emt 0:00:30]} 59. Rc5 {[%emt 0:00:30]} Ra2 {[%emt 0:00:30]} 60. Kg3 {[%emt 0:00:30]} Ra3+ {[%emt 0:00:30]} 61. Kg2 {[%emt 0:00:30]} Kg4 {[%emt 0:00:30]} 62. Rc4 {[%emt 0:00:30]} Ra2 {[%emt 0:00:30]} 63. Rb4 {[%emt 0:00:30]} Re2 {[%emt 0:00:30]} 64. Rb3 {[%emt 0:00:30]} f4 {[%emt 0:00:30]} 65. Kf1 {[%emt 0:00:30]} Rd2 {[%emt 0:00:30]} 66. Ke1 {[%emt 0:00:30]} Ra2 {[%emt 0:00:30]} 67. Rc3 {[%emt 0:00:30]} Ra1+ {[%emt 0:00:30]} 68. Kd2 {[%emt 0:00:30]} e3+ {[%emt 0:00:30]} 69. fxe3 {[%emt 0:00:30]} f3 {[%emt 0:00:30]} 70. Rc4+ {[%emt 0:00:30]} Kg3 {[%emt 0:00:30]} 71. Rf4 {[%emt 0:00:30]} f2 {[%emt 0:00:30]} 0-1

[Event "Opocensky Memorial 2019"]
[Site "Prague"]
[Date "2019.06.27"]
[Round "7.5"]
[White "Sergeev, Vladimir"]
[Black "Sahidi, Samir"]
[Result "1/2-1/2"]
[ECO "A25"]
[WhiteElo "2411"]
[BlackElo "2380"]
[Annotator "NA"]
[PlyCount "88"]
[EventDate "2019.06.22"]
[EventType "tourn"]
[EventCountry "CZE"]
[SourceTitle "playchess.com"]
[Source "ChessBase"]
[SourceQuality "1"]
[TimeControl "5400+30"]

1. c4 {[%emt 0:00:00]} Nf6 {[%emt 0:00:12]} 2. Nc3 {[%emt 0:00:00]} e5 {[%emt 0:01:28]} 3. g3 {[%emt 0:00:00]} Nc6 {[%emt 0:01:58]} 4. Bg2 {[%emt 0:00:03]} Bb4 {[%emt 0:01:53]} 5. Na4 {[%emt 0:02:46]} Be7 {[%emt 0:06:22]} 6. a3 {[%emt 0:02:01]} d5 {[%emt 0:02:39]} 7. cxd5 {[%emt 0:00:19]} Nxd5 {[%emt 0:00:08]} 8. d3 {[%emt 0:03:13]} O-O {[%emt 0:06:45]} 9. Nf3 {[%emt 0:00:17]} Be6 {[%emt 0:01:57]} 10. O-O {[%emt 0:00:58]} b6 {[%emt 0:06:58]} 11. Bd2 {[%emt 0:08:13]} Qd7 {[%emt 0:04:58]} 12. Rc1 {[%emt 0:00:38]} Rad8 {[%emt 0:04:54]} 13. b4 {[%emt 0:05:07]} Bf6 {[%emt 0:01:00]} 14. Nc3 {[%emt 0:10:28]} Nxc3 {[%emt 0:08:44]} 15. Bxc3 {[%emt 0:00:06]} Nd4 {[%emt 0:01:24]} 16. Nxd4 {[%emt 0:06:13]} exd4 {[%emt 0:00:17]} 17. Bd2 {[%emt 0:00:03]} Be5 {[%emt 0:03:35]} 18. Bc6 {[%emt 0:00:55]} Qe7 {[%emt 0:04:19]} 19. f4 {[%emt 0:14:06]} Bf6 {[%emt 0:01:40]} 20. Qc2 {[%emt 0:06:39]} Bd5 {[%emt 0:09:43]} 21. Rfe1 {[%emt 0:06:21]} h5 {[%emt 0:05:39]} 22. Bxd5 {[%emt 0:02:05]} Rxd5 {[%emt 0:00:08]} 23. Qxc7 {[%emt 0:01:34]} Qe6 {[%emt 0:00:23]} 24. Qc6 {[%emt 0:00:59]} Qf5 {[%emt 0:00:43]} 25. Kh1 {[%emt 0:03:01]} Rfd8 {[%emt 0:01:46]} 26. Rg1 {[%emt 0:00:09]} Kh7 {[%emt 0:06:15]} 27. Rg2 {[%emt 0:01:10]} g6 {[%emt 0:01:56]} 28. Qa4 {[%emt 0:04:17]} R8d7 {[%emt 0:02:32]} 29. Qd1 {[%emt 0:00:06]} R5d6 {[%emt 0:01:35]} 30. Qb3 {[%emt 0:05:40]} Re6 {[%emt 0:00:46]} 31. b5 {[%emt 0:00:33]} Qg4 {[%emt 0:01:41]} 32. Qd1 {[%emt 0:03:36]} Bg7 {[%emt 0:03:39]} 33. a4 {[%emt 0:01:48]} Rde7 {[%emt 0:00:39]} 34. Bb4 {[%emt 0:00:12]} Re8 {[%emt 0:00:05]} 35. Rc2 {[%emt 0:00:15]} Re3 {[%emt 0:02:13]} 36. Qf1 {[%emt 0:00:51]} Qe6 {[%emt 0:00:51]} 37. Bd2 {[%emt 0:06:12]} Rxe2 {[%emt 0:00:44]} 38. Rxe2 {[%emt 0:00:02]} Qxe2 {[%emt 0:00:11]} 39. Qxe2 {[%emt 0:00:02]} Rxe2 {[%emt 0:00:30]} 40. Kg1 {[%emt 0:00:01]} Bf8 {[%emt 0:01:36]} 41. Kf1 {[%emt 0:00:24]} Rxh2 {[%emt 0:00:19]} 42. Kg1 {[%emt 0:00:00]} Re2 {[%emt 0:00:11]} 43. Kf1 {[%emt 0:00:01]} Rh2 {[%emt 0:03:29]} 44. Kg1 {[%emt 0:00:01]} Re2 {[%emt 0:00:07]} 1/2-1/2

[Event "Opocensky Memorial 2019"]
[Site "Prague"]
[Date "2019.06.28"]
[Round "8.1"]
[White "Sokolov, Alexander"]
[Black "Sahidi, Samir"]
[Result "0-1"]
[ECO "C37"]
[WhiteElo "2382"]
[BlackElo "2380"]
[Annotator "NA"]
[PlyCount "48"]
[EventDate "2019.06.22"]
[EventType "tourn"]
[EventCountry "CZE"]
[SourceTitle "playchess.com"]
[Source "ChessBase"]
[SourceQuality "1"]
[TimeControl "5400+30"]

1. e4 {[%emt 0:00:00]} e5 {[%emt 0:00:00]} 2. f4 {[%emt 0:00:00]} exf4 {[%emt 0:01:28]} 3. Nf3 {[%emt 0:00:00]} g5 {[%emt 0:01:21]} 4. Bc4 {[%emt 0:00:59]} g4 {[%emt 0:02:14]} 5. O-O {[%emt 0:00:07]} gxf3 {[%emt 0:01:17]} 6. Qxf3 {[%emt 0:00:04]} Qf6 {[%emt 0:01:45]} 7. e5 {[%emt 0:00:21]} Qxe5 {[%emt 0:06:25]} 8. d3 {[%emt 0:00:46]} Bh6 {[%emt 0:10:08]} 9. Bd2 {[%emt 0:01:45]} Ne7 {[%emt 0:02:04]} 10. Bc3 {[%emt 0:06:46]} Qc5+ {[%emt 0:00:06]} 11. Kh1 {[%emt 0:00:04]} Rg8 {[%emt 0:02:20]} 12. Nd2 {[%emt 0:01:35]} d5 {[%emt 0:04:36]} 13. Qh5 {[%emt 0:11:01]} Rg6 {[%emt 0:01:04]} 14. Rae1 {[%emt 0:10:06]} Kf8 {[%emt 0:15:18]} 15. Nb3 {[%emt 0:18:23]} Qd6 {[%emt 0:01:52]} 16. Be5 {[%emt 0:11:27]} Qd8 {[%emt 0:00:41]} 17. Bxf4 {[%emt 0:03:33]} Bxf4 {[%emt 0:00:32]} 18. Rxf4 {[%emt 0:00:06]} dxc4 {[%emt 0:02:39]} 19. Nd4 {[%emt 0:13:50]} Qd5 {[%emt 0:11:09]} 20. Qe2 {[%emt 0:01:40]} Nbc6 {[%emt 0:01:45]} 21. dxc4 {[%emt 0:02:09]} Qd6 {[%emt 0:05:44]} 22. Qf2 {[%emt 0:01:33]} f5 {[%emt 0:02:24]} 23. Qe3 {[%emt 0:02:19]} Qf6 {[%emt 0:01:25]} 24. Nb5 {[%emt 0:06:53]} Bd7 {[%emt 0:02:42]} 0-1